bitfinex/quotes_SOLUSD_20240718
["timestamp","ask_amount","ask_price","bid_price","bid_amount"]
[1721294723772,6.53775768,159.95,159.93,45.0]
[1721294724699,6.53775768,159.95,159.94,12.06]
[1721294724896,6.53775768,159.95,159.94,57.06]
[1721294727001,6.53775768,159.95,159.94,45.0]
[1721294727902,6.53775768,159.95,159.93,45.0]
[1721294730318,6.53775768,159.95,159.93,57.06]
[1721294732292,6.53775768,159.95,159.94,12.06]
[1721294732494,6.53775768,159.95,159.94,45.0]
[1721294733921,19.96331384,159.95,159.89,12.06]
[1721294734216,12.06,159.94,159.89,12.06]
[1721294734401,1.36555616,159.93,159.89,12.06]
[1721294734798,6.53655089,159.92,159.89,12.06]
[1721294735807,6.53655089,159.92,159.9,45.0]
[1721294736003,6.53655089,159.92,159.9,57.06]
[1721294736933,6.53655089,159.92,159.9,45.0]
[1721294737118,1.36555616,159.91,159.83,15.7135]
[1721294737304,13.42555616,159.91,159.85,12.06]
[1721294738704,19.67905616,159.91,159.85,12.06]
[1721294738916,13.42555616,159.91,159.85,12.06]
[1721294739318,13.42555616,159.91,159.86,12.06]
[1721294739522,1.36555616,159.91,159.87,12.06]
[1721294740314,1.36555616,159.91,159.88,45.0]
[1721294740902,1.36555616,159.91,159.88,57.06]
[1721294741601,1.36555616,159.91,159.88,45.0]
[1721294742725,1.36555616,159.91,159.88,57.06]
[1721294742923,7.90210705,159.92,159.88,57.06]
[1721294743629,19.96210705,159.92,159.88,45.0]
[1721294744305,7.90210705,159.92,159.88,57.06]
[1721294748623,19.96210705,159.92,159.88,45.0]
[1721294748817,18.3138,159.91,159.88,45.0]
[1721294749016,13.42555616,159.9,159.87,45.0]
[1721294749332,12.78975089,159.92,159.87,12.06]
[1721294749333,1.36555616,159.91,159.87,12.06]
[1721294749507,6.53990348,159.9,159.88,45.0]
[1721294749932,6.53990348,159.9,159.87,57.06]
[1721294750304,6.53990348,159.9,159.87,58.310877]
[1721294750532,6.53990348,159.9,159.87,57.06]
[1721294752538,6.53990348,159.9,159.89,45.0]
[1721294753234,6.53990348,159.9,159.88,45.0]
[1721294754030,6.53990348,159.9,159.88,57.06]
[1721294754350,29.38245616,159.97,159.89,13.31071658]
[1721294754514,29.38245616,159.97,159.92,12.06]
[1721294754710,6.53761947,159.94,159.93,1.2504294]
[1721294755032,1.36555616,159.97,159.93,12.06]
[1721294755033,6.5367824,159.95,159.93,12.06]
[1721294755235,6.5367824,159.95,159.94,57.06]
[1721294756243,6.5367824,159.95,159.94,45.0]
[1721294756915,6.5367824,159.95,159.93,45.0]
[1721294757614,6.5367824,159.95,159.94,12.06]
[1721294757812,6.5367824,159.95,159.94,57.06]
[1721294759018,6.5367824,159.95,159.94,45.0]
[1721294762131,6.5367824,159.95,159.94,57.06]
[1721294762323,6.5367824,159.95,159.94,45.0]
[1721294762525,6.5367824,159.95,159.94,57.06]
[1721294763119,6.5367824,159.95,159.94,45.0]
[1721294769132,6.5367824,159.95,159.93,45.0]
[1721294771855,6.5367824,159.95,159.93,58.31045404]
[1721294772045,6.5367824,159.95,159.93,57.06]
[1721294772353,6.5367824,159.95,159.93,45.0]
[1721294772763,6.5367824,159.95,159.94,12.06]
[1721294772945,2.19820616,160.0,159.94,57.06]
[1721294773274,7.9010258,159.99,159.94,1.4463255]
[1721294773449,7.9010258,159.99,159.96,12.06]
[1721294773648,6.53546964,159.99,159.97,12.06]
[1721294774346,6.53546964,159.99,159.98,45.0]
[1721294775376,0.83265,160.0,159.98,45.0]
[1721294775671,7.3679405,160.0,159.98,45.0]
[1721294776550,7.3679405,160.0,159.97,57.06]
[1721294776965,7.3679405,160.0,159.97,45.0]
[1721294777666,7.3679405,160.0,159.98,12.06]
[1721294777974,7.3679405,160.0,159.99,57.06]
[1721294778168,7.3679405,160.0,159.99,45.0]
[1721294779183,7.3679405,160.0,159.98,45.0]
[1721294780558,7.3679405,160.0,159.97,45.0]
[1721294781264,13.42555616,159.99,159.94,13.5063255]
[1721294781872,7.3679405,160.0,159.94,1.4463255]
[1721294782078,7.3679405,160.0,159.97,12.06]
[1721294782379,7.3679405,160.0,159.96,12.06]
[1721294782549,7.3679405,160.0,159.94,1.4463255]
[1721294782550,1.36555616,159.99,159.94,1.4463255]
[1721294782757,1.36555616,159.99,159.95,12.06]
[1721294783061,1.36555616,159.99,159.96,45.0]
[1721294784486,7.3679405,160.0,159.96,45.0]
[1721294784668,7.3679405,160.0,159.98,12.06]
[1721294784867,7.3679405,160.0,159.97,13.31020662]
[1721294785061,7.3679405,160.0,159.99,12.06]
[1721294785290,0.83265,160.0,159.99,57.06]
[1721294786988,0.83265,160.0,159.99,45.0]
[1721294787172,0.83265,160.0,159.98,12.06]
[1721294788288,0.83265,160.0,159.95,16.4801]
[1721294788480,0.83265,160.0,159.91,16.2659]
[1721294788677,1.36555616,159.99,159.95,12.06]
[1721294789491,1.36555616,159.99,159.94,13.5063255]
[1721294789897,1.36555616,159.99,159.95,45.0]
[1721294790482,1.36555616,159.98,159.95,45.0]
[1721294790694,13.42555616,159.98,159.95,45.0]
[1721294790904,13.42555616,159.98,159.94,45.0]
[1721294791570,1.36555616,159.97,159.94,45.0]
[1721294792179,12.06,159.98,159.94,46.25029981]
[1721294792392,12.06,159.99,159.94,58.31029981]
[1721294792601,1.36555616,159.98,159.94,57.06]
[1721294792769,1.36555616,159.98,159.91,16.2659]
[1721294792966,13.42555616,159.98,159.93,12.06]
[1721294793489,12.06,159.98,159.93,12.06]
[1721294794192,12.06,159.98,159.94,45.0]
[1721294794393,12.06,159.99,159.94,58.31030385]
[1721294794582,1.36555616,159.98,159.94,58.31030385]
[1721294794909,1.36555616,159.98,159.94,57.06]
[1721294795770,6.53430413,159.97,159.94,57.06]
[1721294797395,6.53430413,159.97,159.94,45.0]
[1721294797902,1.36555616,159.96,159.94,45.0]
[1721294798190,6.53430413,159.97,159.94,45.0]
[1721294798582,6.53430413,159.97,159.95,12.06]
[1721294799575,14.25820616,160.0,159.96,45.0]
[1721294799775,14.25820616,160.0,159.95,12.06]
[1721294799776,6.5348947,159.98,159.95,12.06]
[1721294799971,1.36555616,159.97,159.94,12.06]
[1721294800197,6.5348947,159.98,159.96,12.06]
[1721294800411,2.19820616,160.0,159.97,45.0]
[1721294800591,6.53505713,159.99,159.97,45.0]
[1721294801113,6.53505713,159.99,159.96,45.0]
[1721294802118,6.53505713,159.99,159.97,12.06]
[1721294802289,6.53505713,159.99,159.96,57.06]
[1721294802988,6.53505713,159.99,159.97,1.25012066]
[1721294803193,6.53505713,159.99,159.98,12.06]
[1721294803412,6.53505713,159.99,159.98,57.06]
[1721294808113,0.83265,160.0,159.98,57.06]
[1721294808290,0.83265,160.0,159.99,58.30988729]
[1721294808497,0.83265,160.0,159.99,57.06]
[1721294810899,0.83265,160.0,159.97,12.06]
[1721294811099,0.83265,160.0,159.98,45.0]
[1721294813206,0.83265,160.0,159.99,13.30979848]
[1721294813429,0.83265,160.0,159.99,58.30979848]
[1721294813725,0.83265,160.0,159.99,57.06]
[1721294824622,0.83265,160.0,159.99,70.56587349]
[1721294824830,0.83265,160.0,159.99,91.81546446]
[1721294825007,0.83265,160.0,159.99,91.98546446]
[1721294825214,6.52884975,160.07,159.99,91.98546446]
[1721294825215,6.52884975,160.07,159.99,108.28856446]
[1721294825407,12.06,160.11,160.06,12.06]
[1721294825610,21.8778,160.14,160.0,115.02578313]
[1721294825611,6.53153867,160.08,160.0,94.68578313]
[1721294825805,6.53153867,160.08,160.03,12.06]
[1721294826028,13.42555616,160.09,160.04,58.19401818]
[1721294826207,6.53244967,160.07,160.04,57.06]
[1721294826404,6.53244967,160.07,160.05,12.06]
[1721294826607,6.53244967,160.07,160.06,45.0]
[1721294826836,6.53244967,160.07,160.01,21.44569277]
[1721294827133,6.53244967,160.07,160.03,12.06]
[1721294827320,6.53244967,160.07,160.04,46.24952833]
[1721294827514,6.53244967,160.07,160.04,45.0]
[1721294827825,18.59244967,160.07,160.02,12.06]
[1721294828027,6.53244967,160.07,160.03,58.30956986]
[1721294828611,6.53244967,160.07,160.04,12.06]
[1721294828814,6.53244967,160.07,160.05,45.0]
[1721294829436,6.53244967,160.07,160.04,12.06]
[1721294830736,6.53244967,160.07,160.03,12.06]
[1721294830943,6.53244967,160.07,160.04,45.0]
[1721294831136,18.59244967,160.07,160.04,45.0]
[1721294831319,18.59244967,160.07,160.03,45.0]
[1721294831636,18.59244967,160.07,160.03,46.24955464]
[1721294831823,6.53244967,160.07,160.03,46.24955464]
[1721294832026,6.53244967,160.07,160.03,57.06]
[1721294832733,6.53244967,160.07,160.03,45.0]
[1721294832940,18.59244967,160.07,160.04,1.24953595]
[1721294833244,18.59244967,160.07,160.04,1.24954083]
[1721294833417,18.59244967,160.07,160.03,45.0]
[1721294833613,18.59244967,160.07,160.03,46.24957276]
[1721294833940,13.42555616,160.06,160.01,13.50569277]
[1721294834116,6.2483,160.05,160.01,1.44569277]
[1721294834319,12.06,160.03,159.93,25.6321]
[1721294834649,33.585,160.05,160.0,12.06]
[1721294834850,6.53244967,160.07,160.0,12.06]
[1721294835143,6.53244967,160.07,160.02,12.06]
[1721294835144,18.59244967,160.07,160.02,12.06]
[1721294835524,18.59244967,160.07,160.03,1.24957877]
[1721294835838,18.59244967,160.07,160.03,46.24957877]
[1721294836044,18.59244967,160.07,160.03,45.0]
[1721294837116,13.42555616,160.06,160.03,45.0]
[1721294837321,12.06,160.04,159.94,1.4463255]
[1721294837545,12.06,160.03,159.98,12.06]
[1721294837752,6.51806223,160.03,159.98,12.06]
[1721294838253,6.51806223,160.03,159.99,1.24980663]
[1721294838748,6.51806223,160.03,159.99,13.30980663]
[1721294838945,6.51806223,160.03,159.99,12.06]
[1721294839651,6.51806223,160.03,160.0,46.24970613]
[1721294840435,6.51806223,160.03,160.0,45.0]
[1721294840623,18.57806223,160.03,159.99,45.0]
[1721294840830,18.57806223,160.03,160.0,1.24984484]
[1721294841125,18.57806223,160.03,159.99,45.0]
[1721294841324,19.94361839,160.03,159.98,45.0]
[1721294841520,12.06,160.02,159.99,1.24989466]
[1721294841950,18.57806223,160.03,159.99,1.24989466]
[1721294845045,13.42555616,160.02,159.98,45.0]
[1721294845649,12.06,160.01,159.97,45.0]
[1721294845841,12.06,160.01,159.97,46.25001104]
[1721294847652,12.06,160.01,159.97,45.0]
[1721294847841,12.06,160.01,159.98,1.25001105]
[1721294848229,6.52621257,160.0,159.98,1.25001105]
[1721294850947,6.52621257,160.0,159.97,45.0]
[1721294851958,6.52621257,160.0,159.97,46.25001181]
[1721294852567,6.52621257,160.0,159.97,45.0]
[1721294852753,12.06,159.99,159.97,45.0]
[1721294856645,18.58621257,160.0,159.97,45.0]
[1721294857566,6.52621257,160.0,159.98,1.2500129]
[1721294857757,6.52621257,160.0,159.99,1.24993927]
[1721294858251,6.52621257,160.0,159.99,46.24993927]
[1721294858444,22.4122,160.03,159.99,58.30993927]
[1721294858648,6.52558753,160.02,160.0,1.13449733]
[1721294859147,6.52558753,160.02,159.99,45.0]
[1721294860376,18.58558753,160.02,159.99,45.0]
[1721294860547,18.58558753,160.02,159.98,45.0]
[1721294861174,12.06,160.01,159.98,45.0]
[1721294861474,12.06,159.99,159.94,13.5063255]
[1721294861854,12.06,159.99,159.94,1.4463255]
[1721294862648,12.06,159.98,159.94,46.4463255]
[1721294863260,12.06,159.99,159.94,46.4463255]
[1721294863461,12.06,159.99,159.94,58.5063255]
[1721294867956,34.94958753,160.02,159.94,58.5063255]
[1721294868157,12.06,160.0,159.94,58.5063255]
[1721294868554,12.06,159.99,159.94,58.5063255]
[1721294868955,6.5194455,159.98,159.94,58.5063255]
[1721294870079,6.5194455,159.98,159.94,1.4463255]
[1721294870462,18.5794455,159.98,159.94,1.4463255]
[1721294870984,12.06,159.97,159.94,1.4463255]
[1721294872158,12.06,159.96,159.93,45.0]
[1721294872378,12.06,159.96,159.92,45.0]
[1721294873366,12.06,159.94,159.85,15.667]
[1721294873570,12.06,159.93,159.87,12.06]
[1721294873883,12.06,159.91,159.87,1.44695878]
[1721294875673,12.06,159.91,159.87,46.44695878]
[1721294876567,12.06,159.91,159.87,58.50695878]
[1721294876977,12.06,159.92,159.87,58.50695878]
[1721294877179,6.252,159.95,159.88,12.06]
[1721294877180,12.06,159.93,159.88,12.06]
[1721294877477,12.06,159.93,159.89,45.0]
[1721294879361,18.59451769,159.92,159.89,45.0]
[1721294879584,18.59451769,159.92,159.88,45.0]
[1721294880477,6.53451769,159.92,159.88,57.06]
[1721294880863,18.59451769,159.92,159.88,45.0]
[1721294883182,6.53451769,159.92,159.88,57.06]
[1721294884093,6.53451769,159.92,159.88,45.0]
[1721294884480,6.53451769,159.92,159.88,57.06]
[1721294884684,18.59451769,159.92,159.88,45.0]
[1721294885073,12.06,159.91,159.88,45.0]
[1721294885275,12.06,159.91,159.87,46.44695878]
[1721294885784,12.06,159.91,159.88,45.0]
[1721294885974,12.06,159.91,159.87,1.44695878]
[1721294886585,6.53451769,159.92,159.87,1.44695878]
[1721294886905,12.06,159.89,159.84,12.06]
[1721294887196,12.06,159.9,159.85,12.06]
[1721294887501,18.59451769,159.92,159.87,12.06]
[1721294887798,6.53451769,159.92,159.88,12.06]
[1721294888095,18.59451769,159.92,159.87,12.06]
[1721294888267,18.59451769,159.92,159.88,45.0]
[1721294888795,6.53451769,159.92,159.88,57.06]
[1721294889673,6.53451769,159.92,159.88,45.0]
[1721294889877,6.53451769,159.92,159.88,57.06]
[1721294890084,18.59451769,159.92,159.88,45.0]
[1721294892003,6.53451769,159.92,159.89,12.06]
[1721294892201,6.53451769,159.92,159.9,45.0]
[1721294892592,6.53451769,159.92,159.91,12.06]
[1721294892790,12.06,159.96,159.91,57.06]
[1721294892991,15.9653,159.97,159.93,12.06]
[1721294893319,15.9653,159.97,159.92,45.0]
[1721294893320,6.53427956,159.96,159.95,12.06]
[1721294893810,6.53349915,160.0,159.95,57.06]
[1721294894012,6.53349915,160.0,159.96,45.0]
[1721294894216,6.53349915,160.0,159.98,12.06]
[1721294894499,6.53349915,160.0,159.99,45.0]
[1721294895287,6.53349915,160.0,159.97,12.06]
[1721294895488,6.53349915,160.0,159.98,45.0]
[1721294896904,6.53349915,160.0,159.98,57.06]
[1721294898211,6.53349915,160.0,159.99,12.06]
[1721294898391,6.53349915,160.0,159.99,57.06]
[1721294899709,12.06,160.08,159.99,85.5261]
[1721294899921,22.2072,160.11,160.04,12.06]
[1721294899922,6.52875266,160.06,160.04,12.06]
[1721294901206,6.52875266,160.06,160.05,45.0]
[1721294901790,6.52875266,160.06,160.04,45.0]
[1721294903319,6.52875266,160.06,160.03,45.0]
[1721294903619,18.58875266,160.06,160.03,45.0]
[1721294903911,24.83645266,160.06,160.02,45.0]
[1721294904585,18.58875266,160.06,160.02,45.0]
[1721294904788,6.52875266,160.06,160.02,57.06]
[1721294904990,12.77635266,160.06,160.02,57.06]
[1721294905889,6.52875266,160.06,160.02,57.06]
[1721294906092,6.52875266,160.06,160.05,12.06]
[1721294906307,22.2072,160.11,160.05,57.06]
[1721294906624,6.52797384,160.1,160.07,12.06]
[1721294906819,6.52797384,160.1,160.08,45.0]
[1721294909136,6.52797384,160.1,160.09,12.06]
[1721294909418,6.52797384,160.1,160.09,57.06]
[1721294912216,6.52797384,160.1,160.09,45.0]
[1721294912418,6.52797384,160.1,160.09,57.06]
[1721294912621,6.52797384,160.1,160.09,45.0]
[1721294919018,6.52797384,160.1,160.08,12.06]
[1721294919217,6.52797384,160.1,160.03,1.44551209]
[1721294919218,6.52797384,160.1,160.06,12.06]
[1721294919534,24.83407384,160.1,160.05,12.06]
[1721294920439,18.58797384,160.1,160.05,12.06]
[1721294920615,6.52797384,160.1,160.06,57.06]
[1721294922317,18.58797384,160.1,160.05,12.06]
[1721294922528,24.83407384,160.1,160.04,12.06]
[1721294922725,6.52797384,160.1,160.06,12.06]
[1721294926114,6.52797384,160.1,160.08,12.06]
[1721294926416,6.52797384,160.1,160.09,45.0]
[1721294927937,18.58797384,160.1,160.03,1.44551209]
[1721294928140,12.06,160.08,160.03,1.44551209]
[1721294928448,12.06,160.07,160.02,12.06]
[1721294928752,18.58799575,160.07,160.02,12.06]
[1721294930225,24.83529575,160.07,160.02,12.06]
[1721294930426,12.06,160.05,160.0,12.06]
[1721294930626,12.06,160.06,160.01,12.06]
[1721294931045,18.58799575,160.07,160.01,12.06]
[1721294931540,18.58799575,160.07,160.03,12.06]
[1721294931541,6.52799575,160.07,160.03,12.06]
[1721294931745,6.52799575,160.07,160.04,45.0]
[1721294932952,6.52799575,160.07,160.04,57.06]
[1721294937924,6.52799575,160.07,160.04,45.0]
[1721294940624,7.89355191,160.07,160.04,45.0]
[1721294940830,6.52799575,160.07,160.04,57.06]
[1721294941845,6.52799575,160.07,160.04,45.0]
[1721294942942,6.52799575,160.07,160.05,1.24950861]
[1721294943138,6.52799575,160.07,160.05,13.30950861]
[1721294943442,6.52799575,160.07,160.06,45.0]
[1721294946849,6.52799575,160.07,160.05,45.0]
[1721294947142,1.36555616,160.06,160.04,45.0]
[1721294947351,1.36555616,160.06,160.03,45.0]
[1721294948039,6.52788626,160.05,160.03,45.0]
[1721294949539,6.52788626,160.05,160.02,45.0]
[1721294949756,6.52788626,160.05,160.04,12.06]
[1721294949933,1.36555616,160.12,160.04,58.30936846]
[1721294950127,6.52526229,160.1,160.05,1.24927443]
[1721294950333,6.52526229,160.1,160.08,12.06]
[1721294950549,6.52526229,160.1,160.09,45.0]
[1721294954361,6.52526229,160.1,160.08,45.0]
[1721294954758,6.52526229,160.1,160.07,45.0]
[1721294955267,7.89081845,160.1,160.07,45.0]
[1721294955974,18.58526229,160.1,160.06,45.0]
[1721294956274,18.58526229,160.1,160.07,1.24931589]
[1721294957476,13.42555616,160.09,160.06,45.0]
[1721294957655,13.42555616,160.09,160.05,45.0]
[1721294957856,13.42555616,160.09,160.01,1.249315]
[1721294957857,12.06,160.08,160.01,1.24937252]
[1721294958168,12.06,160.07,160.02,13.30953117]
[1721294958372,12.06,160.07,160.03,1.13430155]
[1721294958581,12.06,160.06,160.01,12.06]
[1721294958751,12.06,160.06,160.02,1.24961099]
[1721294959355,12.06,160.07,160.02,13.30961099]
[1721294959557,12.06,160.07,160.03,1.24961358]
[1721294959758,13.42555616,160.07,160.03,46.24961358]
[1721294959950,12.06,160.06,160.03,45.0]
[1721294960151,12.06,160.06,160.02,45.0]
[1721294960352,6.52632524,160.05,160.02,46.24966797]
[1721294961950,7.8918814,160.05,159.99,16.4061]
[1721294962157,7.8918814,160.05,160.0,13.30976559]
[1721294962158,19.9518814,160.05,160.0,13.30976559]
[1721294963366,1.36555616,160.04,160.0,13.30976559]
[1721294963861,1.36555616,160.04,160.01,45.0]
[1721294964065,12.06,160.02,159.96,12.06]
[1721294964382,13.42555616,160.01,159.96,12.06]
[1721294964585,13.42555616,160.01,159.97,1.25000254]
[1721294964586,12.06,160.01,159.97,1.25000254]
[1721294965658,1.36555616,160.0,159.97,46.25000254]
[1721294966185,13.42555616,160.0,159.94,12.06]
[1721294966360,1.36555616,159.99,159.95,1.25026703]
[1721294967668,1.36555616,159.99,159.95,46.25026703]
[1721294967854,1.36555616,159.99,159.95,45.0]
[1721294968060,1.36555616,159.99,159.95,57.06]
[1721294968374,1.36555616,159.99,159.95,45.0]
[1721294968559,1.36555616,159.99,159.95,57.06]
[1721294968974,13.42555616,160.0,159.95,57.06]
[1721294969170,12.06,160.0,159.96,1.25019473]
[1721294969371,12.06,160.0,159.96,1.25018184]
[1721294969573,13.42555616,160.01,159.96,1.25018184]
[1721294969773,1.36555616,160.01,159.96,13.31018184]
[1721294969983,1.36555616,160.01,159.97,45.0]
[1721294970181,35.27375616,160.02,159.97,58.310019]
[1721294970379,33.9082,160.02,159.98,1.25003409]
[1721294970579,33.9082,160.02,159.99,1.24997716]
[1721294970879,6.52787092,160.01,159.98,1.24995225]
[1721294971290,6.52787092,160.01,159.99,1.24995465]
[1721294971466,6.52787092,160.01,159.98,1.24995269]
[1721294972287,6.52787092,160.01,159.99,1.2499532]
[1721294972597,6.52787092,160.01,159.99,45.0]
[1721294977182,6.52787092,160.01,159.98,45.0]
[1721294977366,6.52787092,160.01,159.98,46.24996191]
[1721294977784,6.52787092,160.01,159.98,45.0]
[1721294977785,12.06,160.0,159.98,45.0]
[1721294978395,13.42555616,160.0,159.98,45.0]
[1721294980072,12.06,159.99,159.98,45.0]
[1721294980574,12.06,159.99,159.94,13.31014719]
[1721294980779,1.36555616,159.98,159.95,1.13531117]
[1721294981077,7.89311548,159.98,159.95,1.13531117]
[1721294981271,7.89311548,159.98,159.94,12.06]
[1721294981587,19.95311548,159.98,159.95,1.25026248]
[1721294981789,18.58755932,159.98,159.94,46.25025901]
[1721294982182,13.42555616,159.97,159.92,12.06]
[1721294982391,12.06,159.96,159.93,1.25037114]
[1721294983089,12.06,159.96,159.92,1.25036159]
[1721294983293,12.06,159.96,159.93,1.25041587]
[1721294983500,12.06,159.96,159.92,1.25041629]
[1721294983693,13.42555616,159.97,159.93,1.25041294]
[1721294984288,19.95311548,159.98,159.93,58.31041294]
[1721294984502,19.95311548,159.98,159.93,57.06]
[1721294985298,19.95311548,159.98,159.94,1.25035034]
[1721294986400,18.58755932,159.98,159.94,1.25035034]
[1721294991598,6.52755932,159.98,159.94,1.25035034]
[1721294991778,6.52755932,159.98,159.94,13.31035034]
[1721294991977,6.52755932,159.98,159.95,45.0]
[1721294992410,6.52755932,159.98,159.96,1.25023965]
[1721294992592,6.52755932,159.98,159.97,12.06]
[1721294992785,6.52755932,159.98,159.97,57.06]
[1721294993106,1.36555616,160.02,159.97,57.06]
[1721294993311,13.42555616,160.03,159.98,58.3099612]
[1721294993621,1.36555616,160.06,159.99,1.24970995]
[1721294993789,13.42555616,160.07,160.02,12.06]
[1721294994103,6.52263053,160.05,160.03,46.24962284]
[1721294994283,6.52263053,160.05,160.03,45.0]
[1721294994602,6.52263053,160.05,160.02,45.0]
[1721294994805,6.52263053,160.05,160.02,46.2496269]
[1721294995278,6.52263053,160.05,160.02,45.0]
[1721294995279,18.58263053,160.05,160.02,45.0]
[1721294995479,18.58263053,160.05,160.01,45.0]
[1721294996079,18.58263053,160.05,160.01,46.24974245]
[1721294996904,1.36555616,160.04,160.01,45.0]
[1721294997082,13.42555616,160.04,160.01,45.0]
[1721294997282,13.42555616,160.04,160.0,45.0]
[1721294998089,12.06,160.03,160.0,45.0]
[1721294998406,1.36555616,160.02,159.99,45.0]
[1721294998582,1.36555616,160.02,159.99,46.24989905]
[1721294999310,13.42555616,160.02,159.99,46.24989905]
[1721294999507,12.06,160.02,159.98,46.44596387]
[1721294999719,13.42555616,160.01,159.96,12.06]
[1721294999884,12.06,160.0,159.93,1.24990557]
[1721295000080,12.06,160.0,159.95,12.06]
[1721295000287,12.06,160.0,159.96,1.25013696]
[1721295000506,1.36555616,159.99,159.96,1.25013696]
[1721295000893,13.42555616,160.0,159.96,1.25013696]
[1721295001203,21.9298,160.02,159.97,12.06]
[1721295001204,33.9898,160.02,159.97,12.06]
[1721295001395,21.9298,160.02,159.98,1.24995462]
[1721295001582,21.9298,160.02,159.99,1.24994639]
[1721295001779,21.9298,160.02,159.98,1.24994733]
[1721295002004,12.06,160.04,159.99,13.30994763]
[1721295002205,13.42555616,160.04,159.99,12.06]
[1721295002410,1.36555616,160.04,160.0,45.0]
[1721295002709,13.42555616,160.04,160.0,45.0]
[1721295002888,1.36555616,160.04,160.0,45.0]
[1721295003089,12.06,160.03,160.0,45.0]
[1721295003708,12.06,160.02,160.0,45.0]
[1721295004315,18.58442672,160.02,159.96,12.06]
[1721295004501,18.58442672,160.02,159.97,57.06]
[1721295004706,18.58442672,160.02,159.98,1.24994666]
[1721295005014,1.36555616,160.01,159.93,1.24995128]
[1721295005320,1.36555616,160.01,159.95,12.06]
[1721295005321,12.06,160.01,159.95,12.06]
[1721295005488,12.06,160.01,159.96,1.25003628]
[1721295006005,13.42555616,160.01,159.96,1.25003628]
[1721295006208,12.06,160.01,159.96,1.25003628]
[1721295006504,6.52442672,160.02,159.96,58.31003628]
[1721295006818,18.58442672,160.02,159.97,13.30986296]
[1721295007130,12.06,160.01,159.98,45.0]
[1721295007286,12.06,160.01,159.99,1.24992618]
[1721295007484,18.58442672,160.02,159.97,1.24992625]
[1721295008200,18.58442672,160.02,159.97,13.30992625]
[1721295008408,18.58442672,160.02,159.98,45.0]
[1721295008593,18.58442672,160.02,159.99,1.24992454]
[1721295010394,6.52442672,160.02,159.99,1.24992454]
[1721295014238,6.52442672,160.02,159.99,13.30992454]
[1721295014424,6.52442672,160.02,160.0,45.0]
[1721295014613,6.52442672,160.02,160.01,13.30974549]
[1721295014831,12.06,160.08,160.01,58.30974549]
[1721295015028,6.2465,160.09,160.03,12.06]
[1721295015029,6.52733409,160.06,160.03,12.06]
[1721295015323,6.52733409,160.06,160.04,58.30952481]
[1721295015505,6.52733409,160.06,160.04,57.06]
[1721295017431,6.52733409,160.06,160.04,45.0]
[1721295017923,7.89289025,160.06,159.99,1.24950885]
[1721295018136,24.83523409,160.06,160.0,12.06]
[1721295018317,24.83523409,160.06,160.01,1.24968616]
[1721295018499,12.06,160.05,160.02,1.24970221]
[1721295019501,12.06,160.05,160.01,1.24971737]
[1721295019725,12.06,160.05,160.02,1.24970095]
[1721295020324,12.77493409,160.06,160.02,1.24970095]
[1721295020632,1.36555616,160.05,160.01,45.0]
[1721295021741,7.89289025,160.06,160.02,1.2497224]
[1721295022228,6.52733409,160.06,160.02,1.2497224]
[1721295024125,6.52733409,160.06,160.02,2.69532483]
[1721295024437,6.52733409,160.06,160.02,47.69532483]
[1721295024725,6.52733409,160.06,160.03,1.24942723]
[1721295024935,6.52733409,160.06,160.03,46.24942723]
[1721295029936,6.52733409,160.06,160.02,1.44560243]
[1721295030259,6.52733409,160.06,159.99,1.24953686]
[1721295030428,7.89289025,160.06,159.99,1.24953686]
[1721295030929,6.2485,160.04,159.96,1.24980083]
[1721295031134,7.89289025,160.06,159.96,1.24980083]
[1721295031135,1.36555616,160.05,159.96,2.69594549]
[1721295031343,1.36555616,160.05,159.97,1.44605426]